[Event "*** Titled Tuesday Blitz"]
[Site "Chess.com"]
[Date "2020.04.28"]
[Round "5"]
[White "TheoSlade"]
[Black "Gyapiking"]
[Result "1/2-1/2"]
[WhiteElo "2310"]
[BlackElo "2497"]
[TimeControl "180+1"]
[EndTime "10:56:52 PDT"]
[Termination "Game drawn by stalemate"]

1. d4 {[%clk 0:03:00.9]} 1... d6 {[%clk 0:02:58.3]} 2. c4 {[%clk 0:03:01.1]}
2... e5 {[%clk 0:02:57.6]} 3. d5 {[%clk 0:03:01]} 3... f5 {[%clk 0:02:56.9]} 4.
e4 {[%clk 0:03:01.3]} 4... fxe4 {[%clk 0:02:52.2]} 5. Nc3 {[%clk 0:03:01.5]}
5... Nf6 {[%clk 0:02:52.1]} 6. Nge2 {[%clk 0:03:01]} 6... Bf5 {[%clk 0:02:50.4]}
7. Ng3 {[%clk 0:03:01.1]} 7... Bg6 {[%clk 0:02:50.3]} 8. Bg5 {[%clk 0:02:59.2]}
8... Be7 {[%clk 0:02:48.6]} 9. h4 {[%clk 0:02:44.6]} 9... h6 {[%clk 0:02:44.9]}
10. Bxf6 {[%clk 0:02:43.8]} 10... gxf6 {[%clk 0:02:44.8]} 11. Nf5 {[%clk
0:02:40.7]} 11... h5 {[%clk 0:02:23.3]} 12. Ng7+ {[%clk 0:02:32.2]} 12... Kf7
{[%clk 0:02:23]} 13. Ne6 {[%clk 0:02:28.7]} 13... Qd7 {[%clk 0:02:23.1]} 14. f3
{[%clk 0:02:13.3]} 14... Na6 {[%clk 0:02:18.5]} 15. fxe4 {[%clk 0:02:04.4]}
15... Nc5 {[%clk 0:02:18]} 16. Nxc5 {[%clk 0:02:02.9]} 16... dxc5 {[%clk
0:02:17.4]} 17. Be2 {[%clk 0:02:01.4]} 17... Rag8 {[%clk 0:02:08.4]} 18. Qd2
{[%clk 0:01:53.7]} 18... Ke8 {[%clk 0:02:05.2]} 19. O-O-O {[%clk 0:01:52.9]}
19... Kd8 {[%clk 0:02:05.3]} 20. Bf3 {[%clk 0:01:52.3]} 20... Kc8 {[%clk
0:02:04.9]} 21. Nb5 {[%clk 0:01:47.7]} 21... a6 {[%clk 0:02:02.6]} 22. Nc3
{[%clk 0:01:47.5]} 22... Kb8 {[%clk 0:02:02.1]} 23. Kb1 {[%clk 0:01:47.5]} 23...
Bf8 {[%clk 0:01:56]} 24. Rhg1 {[%clk 0:01:42.3]} 24... Bh6 {[%clk 0:01:55.5]}
25. Qf2 {[%clk 0:01:42.2]} 25... b6 {[%clk 0:01:55.1]} 26. g4 {[%clk 0:01:41.7]}
26... hxg4 {[%clk 0:01:41.8]} 27. Bxg4 {[%clk 0:01:42.6]} 27... Qe7 {[%clk
0:01:39.9]} 28. Bf5 {[%clk 0:01:35.7]} 28... Bh5 {[%clk 0:01:37.7]} 29. Rxg8+
{[%clk 0:01:30]} 29... Rxg8 {[%clk 0:01:37.1]} 30. Rg1 {[%clk 0:01:30.7]} 30...
Rg7 {[%clk 0:01:22.6]} 31. Rg2 {[%clk 0:01:24.9]} 31... Qf8 {[%clk 0:00:59.7]}
32. Qg1 {[%clk 0:01:23.7]} 32... Bf3 {[%clk 0:00:51.2]} 33. Rg6 {[%clk
0:01:11.5]} 33... Rxg6 {[%clk 0:00:37.3]} 34. Qxg6 {[%clk 0:01:10.8]} 34... Bd2
{[%clk 0:00:36.4]} 35. Kc2 {[%clk 0:01:03.4]} 35... Bf4 {[%clk 0:00:33.7]} 36.
Bg4 {[%clk 0:00:43.5]} 36... Bh1 {[%clk 0:00:23.6]} 37. h5 {[%clk 0:00:43.1]}
37... Bh6 {[%clk 0:00:21.1]} 38. Bh3 {[%clk 0:00:39.9]} 38... Bg5 {[%clk
0:00:20.7]} 39. Ne2 {[%clk 0:00:28.7]} 39... Qh6 {[%clk 0:00:19.2]} 40. Qxh6
{[%clk 0:00:25.4]} 40... Bxe4+ {[%clk 0:00:18.2]} 41. Kc3 {[%clk 0:00:24.1]}
41... Bxh6 {[%clk 0:00:19.1]} 42. Ng3 {[%clk 0:00:23.6]} 42... Bh7 {[%clk
0:00:18]} 43. Bf5 {[%clk 0:00:21.4]} 43... Bf4 {[%clk 0:00:17]} 44. Bxh7 {[%clk
0:00:19]} 44... Bxg3 {[%clk 0:00:17.2]} 45. Kd3 {[%clk 0:00:18.7]} 45... Bf4
{[%clk 0:00:17.3]} 46. Ke4 {[%clk 0:00:17.9]} 46... Kc8 {[%clk 0:00:17]} 47. Kf5
{[%clk 0:00:17.7]} 47... Kd7 {[%clk 0:00:16.7]} 48. Kxf6 {[%clk 0:00:17.4]}
48... c6 {[%clk 0:00:16.6]} 49. dxc6+ {[%clk 0:00:14.6]} 49... Kxc6 {[%clk
0:00:16.6]} 50. Be4+ {[%clk 0:00:12.6]} 50... Kd6 {[%clk 0:00:16]} 51. Kg6
{[%clk 0:00:12.6]} 51... b5 {[%clk 0:00:15.6]} 52. b3 {[%clk 0:00:12]} 52...
bxc4 {[%clk 0:00:15.7]} 53. bxc4 {[%clk 0:00:12.9]} 53... Kc7 {[%clk 0:00:15.2]}
54. h6 {[%clk 0:00:13]} 54... Bxh6 {[%clk 0:00:15.1]} 55. Kxh6 {[%clk
0:00:13.4]} 55... Kb6 {[%clk 0:00:15.8]} 56. a3 {[%clk 0:00:10.9]} 56... Ka5
{[%clk 0:00:15.8]} 57. Bc2 {[%clk 0:00:09.6]} 57... e4 {[%clk 0:00:16]} 58. Bxe4
{[%clk 0:00:07.9]} 58... Ka4 {[%clk 0:00:16.1]} 59. Kg5 {[%clk 0:00:07.9]} 59...
Kxa3 {[%clk 0:00:16.3]} 60. Kf4 {[%clk 0:00:08.2]} 60... Kb3 {[%clk 0:00:16.1]}
61. Bd5 {[%clk 0:00:04.5]} 61... a5 {[%clk 0:00:16.2]} 62. Bc6 {[%clk
0:00:04.3]} 62... a4 {[%clk 0:00:16.2]} 63. Bxa4+ {[%clk 0:00:02.3]} 63... Kxa4
{[%clk 0:00:16.3]} 64. Ke3 {[%clk 0:00:02]} 64... Kb3 {[%clk 0:00:16.2]} 65. Kd2
{[%clk 0:00:01.9]} 65... Kxc4 {[%clk 0:00:16.3]} 66. Kc2 {[%clk 0:00:02.4]}
66... Kb4 {[%clk 0:00:16.5]} 67. Kb2 {[%clk 0:00:02.6]} 67... c4 {[%clk
0:00:15.8]} 68. Kc2 {[%clk 0:00:03.1]} 68... c3 {[%clk 0:00:16]} 69. Kc1 {[%clk
0:00:03.5]} 69... Kb3 {[%clk 0:00:16.2]} 70. Kb1 {[%clk 0:00:04]} 70... c2+
{[%clk 0:00:16.5]} 71. Kc1 {[%clk 0:00:04.4]} 71... Kc3 {[%clk 0:00:16.8]}
1/2-1/2

[Event "*** Titled Tuesday Blitz"]
[Site "Chess.com"]
[Date "2020.04.28"]
[Round "5"]
[White "WinstonSilvakov"]
[Black "MaxLeto"]
[Result "0-1"]
[WhiteElo "2095"]
[BlackElo "2358"]
[TimeControl "180+1"]
[EndTime "10:56:53 PDT"]
[Termination "MaxLeto won on time"]

1. d4 {[%clk 0:02:54.4]} 1... d5 {[%clk 0:02:58.4]} 2. e3 {[%clk 0:02:53]} 2...
Nf6 {[%clk 0:02:57.8]} 3. Bd3 {[%clk 0:02:46.9]} 3... c5 {[%clk 0:02:51.5]} 4.
c3 {[%clk 0:02:44.7]} 4... Nc6 {[%clk 0:02:50.7]} 5. f4 {[%clk 0:02:43.2]} 5...
c4 {[%clk 0:02:31]} 6. Bc2 {[%clk 0:02:35.9]} 6... Bg4 {[%clk 0:02:10.6]} 7. Nf3
{[%clk 0:02:34.8]} 7... e6 {[%clk 0:02:10.3]} 8. O-O {[%clk 0:02:33.2]} 8... Bf5
{[%clk 0:02:03.7]} 9. Nbd2 {[%clk 0:02:26.6]} 9... Bd6 {[%clk 0:01:56.7]} 10.
Ne5 {[%clk 0:02:23.8]} 10... O-O {[%clk 0:01:45.8]} 11. Nxc6 {[%clk 0:01:54.5]}
11... bxc6 {[%clk 0:01:42.9]} 12. Bxf5 {[%clk 0:01:52.7]} 12... exf5 {[%clk
0:01:43.8]} 13. b3 {[%clk 0:01:51.9]} 13... cxb3 {[%clk 0:01:37.4]} 14. axb3
{[%clk 0:01:49.9]} 14... Re8 {[%clk 0:01:38.3]} 15. Qf3 {[%clk 0:01:38.1]} 15...
Re6 {[%clk 0:01:26.9]} 16. c4 {[%clk 0:01:35.9]} 16... Qe7 {[%clk 0:01:24.8]}
17. Re1 {[%clk 0:01:27.6]} 17... Re8 {[%clk 0:01:20]} 18. c5 {[%clk 0:01:25.6]}
18... Bb8 {[%clk 0:01:17.7]} 19. Nf1 {[%clk 0:01:19.8]} 19... Qb7 {[%clk
0:00:56.6]} 20. Qd1 {[%clk 0:01:02.9]} 20... Bxf4 {[%clk 0:00:53.3]} 21. Qd3
{[%clk 0:00:45.5]} 21... g6 {[%clk 0:00:46.1]} 22. Rd1 {[%clk 0:00:45]} 22...
Bh6 {[%clk 0:00:42.4]} 23. h3 {[%clk 0:00:29.1]} 23... Rb8 {[%clk 0:00:36.3]}
24. Ra3 {[%clk 0:00:24.4]} 24... Re7 {[%clk 0:00:30.2]} 25. Bd2 {[%clk
0:00:22.7]} 25... Qb5 {[%clk 0:00:18.8]} 26. Qxb5 {[%clk 0:00:19.3]} 26... Rxb5
{[%clk 0:00:19.7]} 27. Rda1 {[%clk 0:00:18.7]} 27... Ne4 {[%clk 0:00:17.7]} 28.
Rxa7 {[%clk 0:00:16.9]} 28... Rxa7 {[%clk 0:00:16.8]} 29. Rxa7 {[%clk
0:00:17.8]} 29... Rxb3 {[%clk 0:00:17.6]} 30. Rc7 {[%clk 0:00:15.4]} 30... Nxd2
{[%clk 0:00:17.6]} 31. Nxd2 {[%clk 0:00:13.6]} 31... Bxe3+ {[%clk 0:00:18.2]}
32. Kf1 {[%clk 0:00:10]} 32... Bxd2 {[%clk 0:00:18.8]} 33. Rxc6 {[%clk
0:00:10.9]} 33... Be3 {[%clk 0:00:17.1]} 34. Rd6 {[%clk 0:00:10.6]} 34... Bxd4
{[%clk 0:00:16.1]} 35. Rxd5 {[%clk 0:00:11.5]} 35... Rb4 {[%clk 0:00:12.8]} 36.
c6 {[%clk 0:00:12.3]} 36... Kg7 {[%clk 0:00:06.7]} 37. c7 {[%clk 0:00:12.1]}
37... Rc4 {[%clk 0:00:06.9]} 38. Rxd4 {[%clk 0:00:11.2]} 38... Rxc7 {[%clk
0:00:06.8]} 39. Kf2 {[%clk 0:00:11.3]} 39... h5 {[%clk 0:00:07.2]} 40. Kg3
{[%clk 0:00:10.4]} 40... Rc3+ {[%clk 0:00:06.8]} 41. Kf4 {[%clk 0:00:09.3]}
41... Rc2 {[%clk 0:00:06.7]} 42. g3 {[%clk 0:00:08.2]} 42... Rh2 {[%clk
0:00:06.1]} 43. h4 {[%clk 0:00:08.4]} 43... Ra2 {[%clk 0:00:06]} 44. Kf3 {[%clk
0:00:09]} 44... Ra6 {[%clk 0:00:05.9]} 45. Kf4 {[%clk 0:00:09.4]} 45... Re6
{[%clk 0:00:06]} 46. Kf3 {[%clk 0:00:09.5]} 46... Kf6 {[%clk 0:00:06.2]} 47. Rd7
{[%clk 0:00:09.4]} 47... Re4 {[%clk 0:00:06.1]} 48. Rd6+ {[%clk 0:00:06.7]}
48... Ke5 {[%clk 0:00:06]} 49. Ra6 {[%clk 0:00:05.1]} 49... Rb4 {[%clk
0:00:05.7]} 50. Ra5+ {[%clk 0:00:05.9]} 50... Kf6 {[%clk 0:00:05.8]} 51. Ra6+
{[%clk 0:00:06.4]} 51... Kg7 {[%clk 0:00:06.2]} 52. Ra5 {[%clk 0:00:07.1]} 52...
Rb3+ {[%clk 0:00:06.5]} 53. Kf4 {[%clk 0:00:06.1]} 53... Rb4+ {[%clk 0:00:07.4]}
54. Kf3 {[%clk 0:00:06.1]} 54... Rg4 {[%clk 0:00:08.3]} 55. Ra6 {[%clk
0:00:05.9]} 55... f4 {[%clk 0:00:08.6]} 56. Ra4 {[%clk 0:00:04.9]} 56... Rxg3+
{[%clk 0:00:07.3]} 57. Kf2 {[%clk 0:00:03.6]} 57... Rg4 {[%clk 0:00:07.4]} 58.
Re4 {[%clk 0:00:02.8]} 58... Rxh4 {[%clk 0:00:07.7]} 59. Kf3 {[%clk 0:00:02.3]}
59... Rg4 {[%clk 0:00:07.7]} 60. Kf2 {[%clk 0:00:02]} 60... f5 {[%clk 0:00:08]}
0-1

[Event "*** Titled Tuesday Blitz"]
[Site "Chess.com"]
[Date "2020.04.28"]
[Round "5"]
[White "plumalka"]
[Black "kushagramohan"]
[Result "0-1"]
[WhiteElo "2435"]
[BlackElo "2689"]
[TimeControl "180+1"]
[EndTime "10:56:55 PDT"]
[Termination "kushagramohan won by resignation"]

1. e4 {[%clk 0:03:00.9]} 1... d6 {[%clk 0:02:59.5]} 2. d4 {[%clk 0:02:59.9]}
2... Nf6 {[%clk 0:03:00.1]} 3. Nc3 {[%clk 0:02:58.7]} 3... g6 {[%clk 0:03:00.3]}
4. f4 {[%clk 0:02:58.4]} 4... Bg7 {[%clk 0:03:00.2]} 5. Nf3 {[%clk 0:02:58.5]}
5... c5 {[%clk 0:03:00.8]} 6. Bb5+ {[%clk 0:02:57.7]} 6... Bd7 {[%clk
0:03:00.7]} 7. e5 {[%clk 0:02:57.1]} 7... Ng4 {[%clk 0:02:59.7]} 8. Bxd7+ {[%clk
0:02:45.7]} 8... Qxd7 {[%clk 0:02:56.9]} 9. d5 {[%clk 0:02:40.6]} 9... dxe5
{[%clk 0:02:57.1]} 10. h3 {[%clk 0:02:40.5]} 10... e4 {[%clk 0:02:57.7]} 11.
hxg4 {[%clk 0:02:40.2]} 11... exf3 {[%clk 0:02:58.2]} 12. Qxf3 {[%clk
0:02:41.1]} 12... Na6 {[%clk 0:02:58.9]} 13. Bd2 {[%clk 0:02:41.3]} 13... O-O-O
{[%clk 0:02:58.8]} 14. O-O-O {[%clk 0:02:41]} 14... Nb4 {[%clk 0:02:53.9]} 15.
Ne4 {[%clk 0:01:47.4]} 15... Nxd5 {[%clk 0:02:29.2]} 16. Nxc5 {[%clk 0:01:39.3]}
16... Qc6 {[%clk 0:02:20.8]} 17. Nb3 {[%clk 0:01:37.4]} 17... Kb8 {[%clk
0:02:15.6]} 18. Kb1 {[%clk 0:01:37.3]} 18... e6 {[%clk 0:02:14.3]} 19. f5 {[%clk
0:01:33.2]} 19... Rc8 {[%clk 0:02:13.8]} 20. c3 {[%clk 0:01:27.1]} 20... a6
{[%clk 0:02:01.2]} 21. fxe6 {[%clk 0:01:23.1]} 21... fxe6 {[%clk 0:02:00.6]} 22.
Rhe1 {[%clk 0:01:22.5]} 22... Rhf8 {[%clk 0:01:58.1]} 23. Qe4 {[%clk 0:01:21.6]}
23... Rce8 {[%clk 0:01:55.2]} 24. Nd4 {[%clk 0:01:21.5]} 24... Qc4 {[%clk
0:01:40.1]} 25. Nxe6 {[%clk 0:01:07.5]} 25... Qxe4+ {[%clk 0:01:25.6]} 26. Rxe4
{[%clk 0:01:08.4]} 26... Nc7 {[%clk 0:01:01]} 27. Rde1 {[%clk 0:01:05.7]} 27...
Rxe6 {[%clk 0:01:00.4]} 28. Rxe6 {[%clk 0:01:06.6]} 28... Nxe6 {[%clk
0:01:01.3]} 29. Rxe6 {[%clk 0:01:06.9]} 29... Rf2 {[%clk 0:01:01.9]} 30. Re8+
{[%clk 0:01:03.2]} 30... Kc7 {[%clk 0:00:57.8]} 31. Re7+ {[%clk 0:01:02.5]}
31... Kc6 {[%clk 0:00:52.7]} 32. Rxg7 {[%clk 0:01:01.8]} 32... Rxd2 {[%clk
0:00:52.4]} 33. Rxh7 {[%clk 0:01:00.2]} 33... Rxg2 {[%clk 0:00:52.5]} 34. Rg7
{[%clk 0:00:55.6]} 34... Rxg4 {[%clk 0:00:52.1]} 35. Kc2 {[%clk 0:00:56.2]}
35... Rg2+ {[%clk 0:00:51.9]} 36. Kb3 {[%clk 0:00:55.8]} 36... g5 {[%clk
0:00:52]} 37. a4 {[%clk 0:00:55.5]} 37... a5 {[%clk 0:00:50.4]} 38. Rg6+ {[%clk
0:00:52.6]} 38... Kc7 {[%clk 0:00:50.3]} 39. Rg7+ {[%clk 0:00:52.7]} 39... Kb8
{[%clk 0:00:50.4]} 40. Rg8+ {[%clk 0:00:52.7]} 40... Ka7 {[%clk 0:00:50.5]} 41.
Rg6 {[%clk 0:00:53.5]} 41... g4 {[%clk 0:00:49.3]} 42. Rg5 {[%clk 0:00:53.8]}
42... Ka6 {[%clk 0:00:48.3]} 43. Rg6+ {[%clk 0:00:54]} 43... b6 {[%clk
0:00:48.4]} 44. c4 {[%clk 0:00:50]} 44... Rg3+ {[%clk 0:00:41.2]} 45. Ka2 {[%clk
0:00:48.9]} 45... Kb7 {[%clk 0:00:37.7]} 46. Kb1 {[%clk 0:00:40.1]} 46... Rg2
{[%clk 0:00:37.2]} 47. Ka2 {[%clk 0:00:38.4]} 47... g3 {[%clk 0:00:35.4]} 48.
Kb3 {[%clk 0:00:35.3]} 48... Rg1 {[%clk 0:00:35.7]} 49. Ka2 {[%clk 0:00:35.6]}
49... Kc7 {[%clk 0:00:32.9]} 50. Rg7+ {[%clk 0:00:29]} 50... Kc6 {[%clk
0:00:31.1]} 51. Rg5 {[%clk 0:00:26.1]} 51... Kd6 {[%clk 0:00:28.3]} 52. Kb3
{[%clk 0:00:24.9]} 52... Ke6 {[%clk 0:00:22.6]} 53. Rg6+ {[%clk 0:00:24.7]}
53... Kf5 {[%clk 0:00:22.4]} 54. Rxb6 {[%clk 0:00:16.3]} 54... g2 {[%clk
0:00:22.3]} 55. Rb5+ {[%clk 0:00:15]} 55... Kf4 {[%clk 0:00:22.5]} 56. Rb8
{[%clk 0:00:14.2]} 56... Rc1 {[%clk 0:00:21.8]} 57. Rf8+ {[%clk 0:00:13.7]}
57... Ke5 {[%clk 0:00:19.9]} 58. Re8+ {[%clk 0:00:13.4]} 58... Kd6 {[%clk
0:00:20]} 59. Rd8+ {[%clk 0:00:12.5]} 59... Kc7 {[%clk 0:00:20.1]} 60. Rg8
{[%clk 0:00:12.5]} 60... g1=Q {[%clk 0:00:20.3]} 61. Rxg1 {[%clk 0:00:12.4]}
61... Rxg1 {[%clk 0:00:21.2]} 62. Kc3 {[%clk 0:00:11.6]} 62... Kc6 {[%clk
0:00:21.5]} 63. b4 {[%clk 0:00:11.4]} 63... Rg3+ {[%clk 0:00:21.2]} 64. Kd4
{[%clk 0:00:11.3]} 64... axb4 {[%clk 0:00:21.6]} 65. a5 {[%clk 0:00:11.7]} 65...
b3 {[%clk 0:00:21.8]} 66. a6 {[%clk 0:00:12.3]} 66... b2 {[%clk 0:00:22.1]} 67.
a7 {[%clk 0:00:12.8]} 67... Kb7 {[%clk 0:00:22.7]} 68. c5 {[%clk 0:00:13.2]}
68... b1=Q {[%clk 0:00:23]} 69. c6+ {[%clk 0:00:13.7]} 69... Kxa7 {[%clk
0:00:22.9]} 70. c7 {[%clk 0:00:14.6]} 70... Kb7 {[%clk 0:00:22.6]} 0-1

[Event "*** Titled Tuesday Blitz"]
[Site "Chess.com"]
[Date "2020.04.28"]
[Round "5"]
[White "Ali_rastbod"]
[Black "Tsubasa"]
[Result "1-0"]
[WhiteElo "2589"]
[BlackElo "2411"]
[TimeControl "180+1"]
[EndTime "10:56:55 PDT"]
[Termination "Ali_rastbod won on time"]

1. d4 {[%clk 0:02:46.1]} 1... Nf6 {[%clk 0:02:58.8]} 2. Bg5 {[%clk 0:02:43.3]}
2... Ne4 {[%clk 0:02:55.7]} 3. Bf4 {[%clk 0:02:35.3]} 3... d5 {[%clk 0:02:54.8]}
4. f3 {[%clk 0:02:19.3]} 4... Nf6 {[%clk 0:02:53.2]} 5. e4 {[%clk 0:02:17.2]}
5... dxe4 {[%clk 0:02:51.4]} 6. Nc3 {[%clk 0:02:16.4]} 6... exf3 {[%clk
0:02:49.1]} 7. Nxf3 {[%clk 0:02:17.3]} 7... e6 {[%clk 0:02:48.1]} 8. Bc4 {[%clk
0:01:35.4]} 8... Bd6 {[%clk 0:02:39.9]} 9. Qd2 {[%clk 0:01:35.5]} 9... Nc6
{[%clk 0:02:24.1]} 10. O-O-O {[%clk 0:01:34.3]} 10... O-O {[%clk 0:02:04.1]} 11.
Kb1 {[%clk 0:01:33.2]} 11... Bxf4 {[%clk 0:02:01.3]} 12. Qxf4 {[%clk 0:01:32.5]}
12... Nd5 {[%clk 0:02:01.8]} 13. Nxd5 {[%clk 0:01:24.2]} 13... exd5 {[%clk
0:02:00.9]} 14. Bd3 {[%clk 0:01:25.1]} 14... Qf6 {[%clk 0:01:33.6]} 15. Qxf6
{[%clk 0:01:19.7]} 15... gxf6 {[%clk 0:01:32.5]} 16. Bb5 {[%clk 0:01:13.2]}
16... Bg4 {[%clk 0:01:29.1]} 17. Rhf1 {[%clk 0:01:10.5]} 17... Rfe8 {[%clk
0:01:20]} 18. h3 {[%clk 0:01:08.9]} 18... Bxf3 {[%clk 0:01:12.5]} 19. Rxf3
{[%clk 0:01:09.8]} 19... Kg7 {[%clk 0:01:08.7]} 20. Rg3+ {[%clk 0:01:07]} 20...
Kf8 {[%clk 0:01:08.4]} 21. c3 {[%clk 0:01:04.5]} 21... Re6 {[%clk 0:01:04.7]}
22. a3 {[%clk 0:01:00.4]} 22... Ne7 {[%clk 0:00:59.4]} 23. Bd3 {[%clk
0:00:58.8]} 23... Ng6 {[%clk 0:00:56]} 24. Rf3 {[%clk 0:00:56.9]} 24... Rae8
{[%clk 0:00:50.4]} 25. Rd2 {[%clk 0:00:57.2]} 25... c6 {[%clk 0:00:49.1]} 26.
Rdf2 {[%clk 0:00:56.8]} 26... Kg7 {[%clk 0:00:49.1]} 27. Kc2 {[%clk 0:00:51.6]}
27... Rd6 {[%clk 0:00:44.5]} 28. Kd2 {[%clk 0:00:50.5]} 28... Re7 {[%clk
0:00:43.9]} 29. g3 {[%clk 0:00:50.4]} 29... Rde6 {[%clk 0:00:25.7]} 30. h4
{[%clk 0:00:50.4]} 30... h6 {[%clk 0:00:25.7]} 31. Bf5 {[%clk 0:00:46.8]} 31...
Rd6 {[%clk 0:00:20.4]} 32. Bh3 {[%clk 0:00:46.7]} 32... Rd8 {[%clk 0:00:18.9]}
33. b3 {[%clk 0:00:44.8]} 33... Rd6 {[%clk 0:00:18.6]} 34. Bf5 {[%clk
0:00:37.3]} 34... Re8 {[%clk 0:00:17.9]} 35. Bd3 {[%clk 0:00:34.7]} 35... Re7
{[%clk 0:00:17.7]} 36. h5 {[%clk 0:00:35.1]} 36... Nf8 {[%clk 0:00:17.2]} 37.
Re3 {[%clk 0:00:29.9]} 37... Rxe3 {[%clk 0:00:15.8]} 38. Kxe3 {[%clk 0:00:30.8]}
38... Ne6 {[%clk 0:00:15.6]} 39. Bf5 {[%clk 0:00:28.4]} 39... Ng5 {[%clk
0:00:15.8]} 40. c4 {[%clk 0:00:29]} 40... dxc4 {[%clk 0:00:14.6]} 41. bxc4
{[%clk 0:00:29.2]} 41... Rd8 {[%clk 0:00:14.1]} 42. Rb2 {[%clk 0:00:29.4]} 42...
b6 {[%clk 0:00:13.3]} 43. a4 {[%clk 0:00:27.5]} 43... Ne6 {[%clk 0:00:13.4]} 44.
Rd2 {[%clk 0:00:24.9]} 44... c5 {[%clk 0:00:12.5]} 45. d5 {[%clk 0:00:21.5]}
45... Nd4 {[%clk 0:00:12.4]} 46. Be4 {[%clk 0:00:20.5]} 46... Re8 {[%clk
0:00:12.5]} 47. Kf4 {[%clk 0:00:20.5]} 47... Re5 {[%clk 0:00:11.8]} 48. g4
{[%clk 0:00:21.1]} 48... Re8 {[%clk 0:00:10.8]} 49. a5 {[%clk 0:00:20.5]} 49...
bxa5 {[%clk 0:00:10.1]} 50. Ra2 {[%clk 0:00:21.1]} 50... Nb3 {[%clk 0:00:09.7]}
51. Ra3 {[%clk 0:00:21.6]} 51... Nd2 {[%clk 0:00:09]} 52. Bd3 {[%clk 0:00:19.4]}
52... Re1 {[%clk 0:00:08.4]} 53. Rxa5 {[%clk 0:00:18.9]} 53... Rc1 {[%clk
0:00:08.7]} 54. Rxc5 {[%clk 0:00:18.1]} 54... Rc3 {[%clk 0:00:08.7]} 55. Be2
{[%clk 0:00:15.6]} 55... a5 {[%clk 0:00:07.4]} 56. d6 {[%clk 0:00:15.9]} 56...
Nb3 {[%clk 0:00:05.1]} 57. Rd5 {[%clk 0:00:13.1]} 57... Rc2 {[%clk 0:00:04.1]}
58. d7 {[%clk 0:00:10.9]} 58... Rxe2 {[%clk 0:00:02.2]} 59. d8=Q {[%clk
0:00:11.4]} 1-0

[Event "*** Titled Tuesday Blitz"]
[Site "Chess.com"]
[Date "2020.04.28"]
[Round "5"]
[White "Shield12"]
[Black "Supernotar"]
[Result "0-1"]
[WhiteElo "2836"]
[BlackElo "2616"]
[TimeControl "180+1"]
[EndTime "10:56:56 PDT"]
[Termination "Supernotar won by resignation"]

1. e4 {[%clk 0:03:00.9]} 1... c6 {[%clk 0:02:55.3]} 2. d4 {[%clk 0:03:00.7]}
2... d5 {[%clk 0:02:55]} 3. exd5 {[%clk 0:03:01.6]} 3... cxd5 {[%clk 0:02:54.8]}
4. Bd3 {[%clk 0:03:02]} 4... Nc6 {[%clk 0:02:54]} 5. c3 {[%clk 0:03:02.1]} 5...
Qc7 {[%clk 0:02:52.4]} 6. Na3 {[%clk 0:03:02.1]} 6... a6 {[%clk 0:02:52]} 7. Nc2
{[%clk 0:03:02.1]} 7... Nf6 {[%clk 0:02:51.3]} 8. h3 {[%clk 0:03:02]} 8... g6
{[%clk 0:02:51.1]} 9. Ne2 {[%clk 0:02:55.6]} 9... Bf5 {[%clk 0:02:48.7]} 10.
Bxf5 {[%clk 0:02:53.3]} 10... gxf5 {[%clk 0:02:48.2]} 11. Bf4 {[%clk 0:02:45.9]}
11... Qd7 {[%clk 0:02:47.4]} 12. Ne3 {[%clk 0:02:45.8]} 12... e6 {[%clk
0:02:46]} 13. g4 {[%clk 0:02:44.9]} 13... fxg4 {[%clk 0:02:39.2]} 14. hxg4
{[%clk 0:02:45.8]} 14... Bd6 {[%clk 0:02:29.9]} 15. Qd3 {[%clk 0:02:43.4]} 15...
O-O-O {[%clk 0:02:19.3]} 16. O-O-O {[%clk 0:02:34.1]} 16... Bxf4 {[%clk
0:02:00.4]} 17. Nxf4 {[%clk 0:02:35]} 17... Qc7 {[%clk 0:02:00]} 18. Nh5 {[%clk
0:02:30.9]} 18... Nb4 {[%clk 0:01:41.9]} 19. Qe2 {[%clk 0:02:28.9]} 19... Nxa2+
{[%clk 0:01:16]} 20. Kb1 {[%clk 0:02:28.4]} 20... Nxc3+ {[%clk 0:01:14]} 21.
bxc3 {[%clk 0:02:28.8]} 21... Ne4 {[%clk 0:01:13.7]} 22. Rc1 {[%clk 0:02:26.9]}
22... Rd6 {[%clk 0:01:10.8]} 23. c4 {[%clk 0:02:20.2]} 23... Qb6+ {[%clk
0:01:01]} 24. Qb2 {[%clk 0:02:13.9]} 24... Nxf2 {[%clk 0:00:54.9]} 25. cxd5+
{[%clk 0:02:06.9]} 25... Kb8 {[%clk 0:00:51.3]} 26. Rhf1 {[%clk 0:01:49]} 26...
Nd3 {[%clk 0:00:47.7]} 27. Qxb6 {[%clk 0:01:48.5]} 27... Rxb6+ {[%clk 0:00:47]}
28. Kc2 {[%clk 0:01:47.3]} 28... Nxc1 {[%clk 0:00:45.4]} 29. Kxc1 {[%clk
0:01:48.2]} 29... Rc8+ {[%clk 0:00:40.3]} 30. Kd2 {[%clk 0:01:47.2]} 30... Rb2+
{[%clk 0:00:36.9]} 31. Kd3 {[%clk 0:01:47.7]} 31... Rb3+ {[%clk 0:00:34.4]} 32.
Ke4 {[%clk 0:01:43.7]} 32... Re8 {[%clk 0:00:29.6]} 33. d6 {[%clk 0:01:40.7]}
33... f5+ {[%clk 0:00:28.7]} 34. Kf4 {[%clk 0:01:35.6]} 34... fxg4 {[%clk
0:00:26.7]} 35. Nf6 {[%clk 0:01:33.8]} 35... Rd8 {[%clk 0:00:24.7]} 36. Nc4
{[%clk 0:01:25.9]} 36... Rc3 {[%clk 0:00:21.5]} 37. Ne5 {[%clk 0:01:19.5]} 37...
Rxd6 {[%clk 0:00:21.5]} 38. Ne4 {[%clk 0:01:19.7]} 38... Rxd4 {[%clk 0:00:19.3]}
39. Nxg4 {[%clk 0:01:17]} 39... Rd5 {[%clk 0:00:12.9]} 40. Ne5 {[%clk
0:00:58.3]} 40... Rh3 {[%clk 0:00:09.1]} 41. Nf6 {[%clk 0:00:47.6]} 41... Rd4+
{[%clk 0:00:07.3]} 42. Kg5 {[%clk 0:00:46.1]} 42... Rg3+ {[%clk 0:00:07]} 43.
Nfg4 {[%clk 0:00:40.2]} 43... a5 {[%clk 0:00:06.1]} 44. Ra1 {[%clk 0:00:37.2]}
44... a4 {[%clk 0:00:05.9]} 45. Kh5 {[%clk 0:00:29.1]} 45... a3 {[%clk
0:00:04.2]} 46. Nf6 {[%clk 0:00:28]} 46... Rc3 {[%clk 0:00:01.8]} 47. Kh6 {[%clk
0:00:22.8]} 47... Ka7 {[%clk 0:00:02.2]} 48. Kxh7 {[%clk 0:00:21.2]} 48... b5
{[%clk 0:00:02.4]} 49. Kg7 {[%clk 0:00:21.2]} 49... b4 {[%clk 0:00:02.8]} 50.
Kf7 {[%clk 0:00:21.1]} 50... Kb6 {[%clk 0:00:03.2]} 51. Kxe6 {[%clk 0:00:20.7]}
51... Kb5 {[%clk 0:00:03.4]} 52. Nd5 {[%clk 0:00:20.2]} 52... Rc2 {[%clk
0:00:03.5]} 53. Ne3 {[%clk 0:00:17.6]} 53... Re2 {[%clk 0:00:03.1]} 54. Nf5
{[%clk 0:00:17.9]} 54... Rde4 {[%clk 0:00:02.8]} 55. Nd6+ {[%clk 0:00:18.2]}
55... Ka4 {[%clk 0:00:03.1]} 56. Nxe4 {[%clk 0:00:18.2]} 56... Rxe4 {[%clk
0:00:04]} 57. Kd5 {[%clk 0:00:18.1]} 57... Rxe5+ {[%clk 0:00:04.3]} 58. Kxe5
{[%clk 0:00:19]} 58... b3 {[%clk 0:00:04.7]} 59. Kd4 {[%clk 0:00:10]} 59... b2
{[%clk 0:00:05.1]} 60. Re1 {[%clk 0:00:07.9]} 60... a2 {[%clk 0:00:05.3]} 61.
Kc3 {[%clk 0:00:06]} 61... b1=Q {[%clk 0:00:05.6]} 0-1